Cogmind - Beta 15 @@@ ROGUE MODE // 2025.06.28 @ 14:01:43 Player: satan5 Result: Destroyed by P-60 Hacker with Shock Rifle Performance ------------- Evolutions (2) 1000 Regions Visited (5) 1000 Robots Destroyed (65) 325 Value Destroyed (1587) 1587 Prototype IDs (7) 140 Alien Tech Used (0) 0 Bonus (200) 200 TOTAL SCORE: 4252 Bonus ------- Entered Garrisons 200 Cogmind --------- Core Integrity 0/550 Matter 240/300 Energy 280/280 System Corruption 8% Temperature Cool (0) Movement Core (500) Ox9 Location -8/Garrison Parts ------- > --- POWER (1) -------- Cooled Ion Engine > --- PROPULSION (4) --- (None) > --- UTILITY (4) ------ Large Storage Unit > --- WEAPON (2) ------- Katana > --- INVENTORY (15) --- Cooled Ion Engine Cooled Ion Engine Cooled Ion Engine High-capacity Storage Unit Improved EM Shotgun Improved EM Shotgun Improved EM Shotgun Improved Medium Laser Hammer Peak State ------------ > --- POWER ------------ Cooled Ion Engine > --- PROPULSION ------- Aluminum Leg Aluminum Leg Aluminum Leg Aluminum Leg > --- UTILITY ---------- Heat Sink Large Storage Unit > --- WEAPON ----------- Improved Medium Laser Improved Medium Laser > --- INVENTORY -------- Cooled Ion Engine Cooled Ion Engine Cooled Ion Engine Cooled Ion Engine Cooled Ion Engine Hover Unit High-capacity Storage Unit Improved EM Shotgun Improved EM Shotgun Improved Medium Laser Improved Medium Laser Improved Medium Laser Grenade Launcher Hammer Katana [Rating: 18] Favorites ----------- Power Light Ion Engine Engine Light Ion Engine Propulsion Aluminum Leg Leg Aluminum Leg Hover Unit Hover Unit Utility Large Storage Unit Device Heat Sink Storage Large Storage Unit Weapon Medium Laser Energy Gun Medium Laser Ballistic Gun Light Assault Rifle Launcher Grenade Launcher Slashing Weapon Katana Build | -11 -10 -9 -9 -8 -8 ------- Run | Yrd Mat Mat Min Mat Gar Slots Evolved 4 | . . 2 . 2 . Power . | . . . . . . Propulsion 2 | . . 2 . . . Utility 2 | . . . . 2 . Weapon . | . . . . . . Parts Attached 39 | 7 6 20 . . 6 Power 7 | 1 1 3 . . 2 Engine 7 | 1 1 3 . . 2 Core . | . . . . . . Reactor . | . . . . . . Propulsion 12 | 2 2 7 . . 1 Treads . | . . . . . . Leg 11 | 2 2 7 . . . Wheel . | . . . . . . Hover 1 | . . . . . 1 Flight . | . . . . . . Utility 5 | 2 1 2 . . . Device 3 | 1 1 1 . . . Storage 2 | 1 . 1 . . . Processor . | . . . . . . Hackware . | . . . . . . Protection . | . . . . . . Artifact . | . . . . . . Weapon 15 | 2 2 8 . . 3 Energy Gun 12 | 1 2 7 . . 2 Energy Cannon . | . . . . . . Ballistic Gun 1 | 1 . . . . . Ballistic Cannon . | . . . . . . Launcher 1 | . . 1 . . . Special Weapon . | . . . . . . Impact Weapon . | . . . . . . Slashing Weapon 1 | . . . . . 1 Piercing Weapon . | . . . . . . Special Melee Weapon . | . . . . . . Unidentified Prototypes 1 | . . 1 . . . Parts Lost 23 | . 5 6 . . 12 Power 4 | . 1 1 . . 2 Propulsion 9 | . . 4 . . 5 Utility 3 | . 2 . . . 1 Weapon 7 | . 2 1 . . 4 Highest Loss Streak 12 | . 3 1 . . 12 To Critical Strikes . | . . . . . . Average Backups 9 | 2 6 11 15 15 12 Power 1 | . . 2 5 5 4 Propulsion 1 | . 1 . 1 1 . Utility 1 | . 1 2 1 1 1 Weapon 4 | 1 2 5 8 8 6 Tool/Special . | . . . . . . Unused Backups 15 | . 2 6 . . 7 Power 3 | . . . . . 3 Propulsion 1 | . . 1 . . . Utility 3 | . 1 1 . . 1 Weapon 8 | . 1 4 . . 3 Tool/Special . | . . . . . . Average Slot Usage (%) 90 | . 96 90 100 81 50 Engine 11 | . 13 10 11 9 8 Leg 31 | . 28 35 44 36 16 Device 10 | . 11 9 11 9 2 Storage 12 | . 14 11 11 9 9 Energy Gun 19 | . 18 22 22 18 9 Ballistic Gun 3 | . 9 . . . . Peak Build Rating 18 | 7 8 18 18 18 18 Average Rating 10 | 4 6 13 18 18 12 On Entrance 11 | . 7 6 18 18 18 Naked Turns . | . . . . . . Heaviest Build 35 | 12 14 35 35 35 35 Greatest Support 43 | 20 20 43 40 40 40 Greatest Overweight (x) 4 | . 1 1 . . 4 Average Overweight (x) . | . . . . . . Largest Inventory Capacity 15 | 8 8 15 15 15 15 Average Capacity 11 | 7 8 14 15 15 15 Most Carried 15 | 5 8 15 15 15 15 Average Carried 9 | 2 6 11 15 15 12 Final Capacity 15 | 8 8 15 15 15 15 Final Carried 15 | 3 5 15 15 15 9 Class Distribution -------------------- 55% | Mutant 44% | Scavenger-Mutant Dominant Class ---------------- Mutant | -10/Materials Scavenger-Mutant | -9/Materials Scavenger-Mutant | -9/Mines Scavenger-Mutant | -8/Materials Scavenger-Mutant | -8/Garrison Resources | -11 -10 -9 -9 -8 -8 ----------- Run | Yrd Mat Mat Min Mat Gar Matter Collected 682 | 222 230 230 . . . Remotely . | . . . . . . Salvage Created 2093 | 39 577 1167 148 . 162 Parts 118 | 5 23 66 10 . 14 Haulers Intercepted 5 | . . 5 . . . Recyclers Shooed 2 | 1 1 . . . . Parts Field Recycled . | . . . . . . Retrieved Matter . | . . . . . . Parts Self-Destructed . | . . . . . . Prevented . | . . . . . . Kills | -11 -10 -9 -9 -8 -8 ------- Run | Yrd Mat Mat Min Mat Gar Combat Hostiles Destroyed 41 | . 12 20 4 . 5 Melee 1 | . . . . . 1 Guns 30 | . 11 14 4 . 1 AOE 9 | . . 6 . . 3 Classes Destroyed 15 | 1 3 9 . . 2 Worker 5 | . . 5 . . . Builder 3 | . . 2 1 . . Tunneler 3 | 2 . 1 . . . Hauler 5 | . . 5 . . . Recycler 2 | . . 1 1 . . Mechanic 1 | . . 1 . . . Operator 3 | . 1 2 . . . Watcher 2 | . 2 . . . . Swarmer 8 | . . 4 4 . . Grunt 25 | . 12 12 . . 1 Brawler 1 | . . 1 . . . Duelist 1 | . . 1 . . . Sentry 3 | . . 2 . . 1 Hunter 1 | . . . . . 1 Programmer 2 | . . . . . 2 Best Kill Streak 8 | 2 4 8 6 . 5 Combat Bots Only 6 | . 4 6 4 . 5 Max Kills in Single Turn 5 | 1 1 5 1 . 2 Gunslinging . | . . . . . . Exploded 3 | . . 3 . . 2 Melee 1 | . . . . . 1 Uniques/NPCs Destroyed . | . . . . . . Combat | -11 -10 -9 -9 -8 -8 -------- Run | Yrd Mat Mat Min Mat Gar Hostile Shots Fired 265 | . 79 73 7 . 106 Missed 65 | . 15 24 2 . 24 Hits 200 | . 64 49 5 . 82 Projectile 200 | . 64 49 5 . 82 Critical Strikes 6 | . 3 . . . 3 Damage Taken 3050 | . 906 756 37 . 1351 Core 878 | . 248 75 . . 555 Absorbed by Shields . | . . . . . . Core Remaining (%) 60 | 100 . . 81 . . Volleys Fired 165 | 4 76 69 6 . 10 Largest 2 | 2 2 2 2 . 2 Hottest 112 | 70 100 112 90 . 90 Shots Fired 313 | 8 139 136 12 . 18 Gun 307 | 8 139 134 12 . 14 Cannon . | . . . . . . Launcher 6 | . . 2 . . 4 Special . | . . . . . . Kinetic 44 | 4 40 . . . . Thermal 218 | 4 99 115 . . . Explosive 6 | . . 2 . . 4 Electromagnetic 45 | . . 19 12 . 14 Robot Hit Streak 27 | 3 10 27 4 . 12 Robot Miss Streak 6 | 1 6 3 3 . 3 Penetration Max . | . . . . . . Secondary Targets 4 | . . 3 . . 1 Max Gunslinging Chain 1 | . . 1 . . 1 Shots Hit Robots 218 | 5 87 92 6 . 28 Core Hits 117 | 4 34 52 7 . 20 Critical Kills . | . . . . . . Critical Parts Destroyed . | . . . . . . Critical Strikes 18 | 1 11 6 . . . Burn 18 | 1 11 6 . . . Melee Attacks 17 | . . . . . 17 Impact . | . . . . . . Slashing 17 | . . . . . 17 Piercing . | . . . . . . Sneak Attacks . | . . . . . . Combat Hostiles . | . . . . . . Follow-up Attacks . | . . . . . . Damage Inflicted 4335 | 55 995 2274 82 . 929 Guns 2801 | 55 995 1499 82 . 170 Cannons . | . . . . . . Explosions 1168 | . . 775 . . 393 Melee 366 | . . . . . 366 Ramming . | . . . . . . Kinetic 207 | 17 190 . . . . Thermal 2650 | 38 805 1807 . . . Explosive 537 | . . 144 . . 393 Electromagnetic 575 | . . 323 82 . 170 Impact . | . . . . . . Slashing 366 | . . . . . 366 Piercing . | . . . . . . Highest Corruption 8 | . . . . . 8 Average Corruption 5 | . . . . . 5 Corruption Purged . | . . . . . . Corruption Blocked . | . . . . . . Effects 2 | . . . . . 2 Message Errors 1 | . . . . . 1 Misfires 1 | . . . . . 1 Overload Shots . | . . . . . . Overflow Damage 283 | . . 268 . . 15 Projectiles . | . . . . . . Explosions 283 | . . 268 . . 15 Melee . | . . . . . . Knockbacks . | . . . . . . Impact . | . . . . . . Kinetic . | . . . . . . Secondary . | . . . . . . Self-Inflicted Damage 322 | . . 187 . . 135 Shots 8 | . . 4 . . 4 Rammed . | . . . . . . Targets Rammed . | . . . . . . Kicked . | . . . . . . Crushed . | . . . . . . Highest Temperature 536 | 40 536 287 . . 58 Average Temperature 115 | 20 177 28 . . 27 Received Heat Transfer 954 | . 528 219 . . 207 Effects 16 | . 16 . . . . Shutdowns 4 | . 4 . . . . Interference 6 | . 6 . . . . Matter Decay 2 | . 2 . . . . Short Circuit 1 | . 1 . . . . Damage (major) 1 | . 1 . . . . Damage (core) 2 | . 2 . . . . Siege Activations . | . . . . . . Martial Activations . | . . . . . . Shielding Activations . | . . . . . . Robots Disrupted . | . . . . . . Combat Hostiles . | . . . . . . Robots Corrupted . | . . . . . . Combat Hostiles . | . . . . . . Parts Fried . | . . . . . . Impact Corruptions . | . . . . . . Robots Melted 2 | . 1 1 . . . Combat Hostiles 1 | . 1 . . . . Parts Melted 20 | 1 7 12 . . . Heat Transferred 7271 | 185 3182 3904 . . . Parts Sabotaged . | . . . . . . Parts Stolen . | . . . . . . Parts Stripped . | . . . . . . Power Chain Reactions 2 | . . 2 . . . Alert | -11 -10 -9 -9 -8 -8 ------- Run | Yrd Mat Mat Min Mat Gar Maximum Alert Level 1 | . . 1 . . . Low Security (%) 97 | 100 100 94 100 100 100 Level 1 2 | . . 5 . . . Level 2 . | . . . . . . Level 3 . | . . . . . . Level 4 . | . . . . . . Level 5 . | . . . . . . High Security . | . . . . . . Max Security . | . . . . . . Peak Influence 339 | 5 112 339 136 52 92 Initial 66 | . . 35 66 48 33 Average 62 | 1 37 88 81 48 48 Influence Increases 1298 | 10 334 709 100 4 141 Destroy 0b10 Robot/C 820 | . 240 400 80 . 100 Destroy 0b10 Robot/NC 120 | 10 15 85 10 . . Destroy Leader 184 | . 64 100 10 . 10 Successful Hack 18 | . 14 . . 4 . Disable Machine 45 | . . 45 . . . Destroy Structure 96 | . 1 79 . . 16 Lose Combat Pursuer 15 | . . . . . 15 Influence Decreases 1244 | 10 249 623 145 78 139 Entered New Map 252 | . . 50 105 78 19 Time Decay 612 | 10 199 363 40 . . Lost Part 230 | . 50 60 . . 120 Purge Threat 150 | . . 150 . . . Squads Dispatched 5 | . 2 3 . . . Investigation . | . . . . . . Extermination . | . . . . . . Reinforcement 5 | . 2 3 . . . Assault . | . . . . . . Garrison . | . . . . . . Intercept . | . . . . . . Searches Triggered . | . . . . . . Construction Impeded . | . . . . . . Haulers Reinforced . | . . . . . . Active Scanning Responses . | . . . . . . Cargo Convoy Interrupts . | . . . . . . Stealth | -11 -10 -9 -9 -8 -8 --------- Run | Yrd Mat Mat Min Mat Gar Distress Signals 7 | . 2 4 . 1 . Communications Jammed . | . . . . . . Distress Signals . | . . . . . . Times Spotted 61 | . 22 27 4 1 7 Peak Tracking Total 7 | . 4 5 4 2 7 Tactical Retreats 1 | . . . . . 1 Traps | -11 -10 -9 -9 -8 -8 ------- Run | Yrd Mat Mat Min Mat Gar Traps Triggered 1 | . . . . . 1 Indirectly . | . . . . . . Trap Hack Attempts . | . . . . . . Triggered . | . . . . . . Disarmed . | . . . . . . Reprogrammed . | . . . . . . Reused . | . . . . . . Traps Extracted . | . . . . . . Installed . | . . . . . . Triggered . | . . . . . . Machines | -11 -10 -9 -9 -8 -8 ---------- Run | Yrd Mat Mat Min Mat Gar Machines Disabled 3 | . . 3 . . . Max in Single Turn 3 | . . 3 . . . Machines Repaired . | . . . . . . Machines Dismantled . | . . . . . . Machines Sabotaged . | . . . . . . Overloaded Fab Kills . | . . . . . . Hacking | -11 -10 -9 -9 -8 -8 --------- Run | Yrd Mat Mat Min Mat Gar Machines Accessed 8 | . 4 3 . 1 . Terminals 5 | . 4 1 . . . Fabricators . | . . . . . . Repair Stations . | . . . . . . Recycling Units 1 | . . 1 . . . Scanalyzers 1 | . . 1 . . . Garrison Access 1 | . . . . 1 . Total Hacks 19 | . 12 6 . 1 . Successful 12 | . 7 4 . 1 . Failed 7 | . 5 2 . . . Catastrophic . | . . . . . . Database Lockouts . | . . . . . . Manual 12 | . 9 3 . . . Terminals 14 | . 12 2 . . . Fabricators . | . . . . . . Repair Stations . | . . . . . . Recycling Units 2 | . . 2 . . . Scanalyzers 2 | . . 2 . . . Garrison Access 1 | . . . . 1 . Terminal Hacks 4 | . 3 1 . . . Prototype ID Bank 2 | . 2 . . . . Unreport Threat 1 | . . 1 . . . Maintenance Status 1 | . 1 . . . . Fabricator Hacks . | . . . . . . Repair Station Hacks . | . . . . . . Recycling Unit Hacks 1 | . . 1 . . . Retrieve Components 1 | . . 1 . . . Scanalyzer 2 | . . 2 . . . Insert Component 2 | . . 2 . . . Garrison Access Hacks 1 | . . . . 1 . Unlock Access 1 | . . . . 1 . Unauthorized Hacks 4 | . 4 . . . . Terminals 4 | . 4 . . . . Botnet 3 | . 3 . . . . Operators 1 | . 1 . . . . Fabricators . | . . . . . . Repair Stations . | . . . . . . Recycling Units . | . . . . . . Scanalyzers . | . . . . . . Garrison Access . | . . . . . . Data Cores Recovered . | . . . . . . Used . | . . . . . . Hacking Detections 6 | . 4 2 . . . Full Trace Events . | . . . . . . Feedback Events . | . . . . . . Feedback Blocked . | . . . . . . Robot Schematics Acquired . | . . . . . . Robots Built . | . . . . . . Authchips . | . . . . . . Time . | . . . . . . Total Robot Build Rating . | . . . . . . Part Schematics Acquired . | . . . . . . Parts Built . | . . . . . . Authchips . | . . . . . . Time . | . . . . . . Total Part Build Rating . | . . . . . . Parts Repaired . | . . . . . . Time . | . . . . . . Parts Recycled . | . . . . . . Recycled Matter . | . . . . . . Retrieved Matter . | . . . . . . Retrieved Components 1 | . . 1 . . . Parts Scanalyzed . | . . . . . . Part Schematics Acquired . | . . . . . . Parts Damaged . | . . . . . . Bothacking | -11 -10 -9 -9 -8 -8 ------------ Run | Yrd Mat Mat Min Mat Gar Used RIF Installer . | . . . . . . Robots Hacked . | . . . . . . Non-combat . | . . . . . . Combat . | . . . . . . Robot Hacks Applied . | . . . . . . Relay Couplers Released . | . . . . . . Fabnet Peak Effective % . | . . . . . . Robots Rewired . | . . . . . . Allies Hacked . | . . . . . . Hacks Repelled . | . . . . . . Allies | -11 -10 -9 -9 -8 -8 -------- Run | Yrd Mat Mat Min Mat Gar Total Allies . | . . . . . . Largest Group . | . . . . . . Highest-Rated Group . | . . . . . . Highest-Rated Ally . | . . . . . . Total Orders . | . . . . . . Ally Attacks . | . . . . . . Total Damage . | . . . . . . Kills . | . . . . . . Allies Corrupted . | . . . . . . Allies Melted . | . . . . . . Intel | -11 -10 -9 -9 -8 -8 ------- Run | Yrd Mat Mat Min Mat Gar Active Infowar (turns) 481 | 13 468 . . . . Structural 374 | . 374 . . . . Seismic 107 | 13 94 . . . . Robot Analysis Total . | . . . . . . Derelict Logs Recovered . | . . . . . . Drone Launches . | . . . . . . Drone Recoveries . | . . . . . . Exploration | -11 -10 -9 -9 -8 -8 ------------- Run | Yrd Mat Mat Min Mat Gar Turns Passed 1835 | 84 708 840 85 17 101 Spaces Moved 879 | 61 362 368 56 15 17 Core 21 | 21 . . . . . Treads . | . . . . . . Legs 856 | 40 362 368 56 15 15 Wheels . | . . . . . . Hover 2 | . . . . . 2 Flight . | . . . . . . Fastest Speed 50 | 50 120 120 120 120 120 Average Speed 127 | 95 121 139 120 120 141 Slowest Speed 300 | 120 190 190 120 120 300 Overloaded Moves . | . . . . . . Propulsion Burnouts . | . . . . . . Robots Hopped . | . . . . . . Potential Cave-ins . | . . . . . . Cave-ins Triggered . | . . . . . . Exploration Rate (%) 22 | 4 56 35 32 3 6 Regions Visited 5 Branch Regions 1 Pre-discovered Areas . | . . . . . . Known Exits Taken 1 | . . . . 1 . Unknown Exits Taken 4 | 1 1 1 1 . . Scrap Searched 1 | . . . 1 . . Spaces Dug . | . . . . . . Terrain Destroyed 102 | . . 79 . . 23 Melee . | . . . . . . Projectile . | . . . . . . AOE 102 | . . 79 . . 23 Terrain Rammed . | . . . . . . Walls Destroyed . | . . . . . . Machines Disabled . | . . . . . . Actions | -11 -10 -9 -9 -8 -8 --------- Run | Yrd Mat Mat Min Mat Gar Total 1262 | 78 499 558 62 14 51 Wait 101 | . 41 59 1 . . Move 874 | 60 361 367 55 14 17 Hop . | . . . . . . Pick Up 42 | 7 8 27 . . . Fast Attach 5 | 3 . 2 . . . Attach 21 | 4 4 7 . . 6 Detach . | . . . . . . Swap 19 | . 5 13 . . 1 Drop 18 | . 4 14 . . . Fire 165 | 4 76 69 6 . 10 Melee 17 | . . . . . 17 Ram . | . . . . . . Kick . | . . . . . . Crush . | . . . . . . Escape Stasis . | . . . . . . Rewire . | . . . . . . Trap . | . . . . . . Miscellaneous . | . . . . . . Route ------- -11/Scrapyard -10/Materials (discovered 2 exits: *Mat x2) -9/Materials (discovered 2 exits: *Mat / [*Min]) -9/Mines -8/Materials -8/Garrison History --------- Turn | Location | Event 6 | -11/Scrapyard | Discovered new exit (range 16) 85 | -11/Scrapyard | Entered Materials 287 | -10/Materials | Discovered new exit (range 10) 302 | -10/Materials | Build established: Mutant 412 | -10/Materials | Discovered new exit (range 5) 690 | -10/Materials | Core integrity fell below 50% 718 | -10/Materials | Lost 3 parts (1p1u1w) 720 | -10/Materials | Core integrity fell below 20% 793 | -10/Materials | Entered another Materials area 793 | -9/Materials | Evolved 2 slots: Propulsion x2 1351 | -9/Materials | Discovered new exit (range 11) 1508 | -9/Materials | Discovered new exit (range 13) 1587 | -9/Materials | Build established: Scavenger-Mutant 1633 | -9/Materials | Entered Mines 1680 | -9/Mines | Discovered new exit (range 11) 1718 | -9/Mines | Entered Materials 1718 | -8/Materials | Evolved 2 slots: Utility x2 1734 | -8/Materials | Identified exit to Garrison 1735 | -8/Materials | Entered Garrison 1801 | -8/Garrison | Core integrity fell below 50% 1807 | -8/Garrison | Triggered checkpoint 1824 | -8/Garrison | Core integrity fell below 20% 1836 | -8/Garrison | Destroyed by P-60 Hacker with Shock Rifle Last Messages --------------- misfires. 01779_ P-60 Hacker destroyed. 01779_ Aluminum Leg destroyed. 01779_ Destroyed Aluminum Leg. 01779_ H-55 Commando destroyed. 01780_ Aluminum Leg destroyed. 01782_ Imp. EM Shotgun destroyed. 01782_ Destroyed Imp. EM Shotgun. 01783_ Grenade Launcher destroyed. 01788_ Cld. Ion Engine destroyed. 01794_ P-60 Hacker destroyed. 01798_ The unstable cave ceiling collapses. 01798_ Carbon-fiber Leg crushed. 01806_ The unstable cave ceiling collapses. 01806_ Hover Unit destroyed. 01807_ Beams of light sweep through the air. An alarm sounds. 01812_ The unstable cave ceiling collapses. 01815_ Cld. Ion Engine destroyed. 01824_ PTCUL= WVJMMW:ZFCK V5XDH L Map ----- +----------------------------------------------------+ | ?????????????????????????????????????????????????? | | ?????????????????????????????????????????????????? | | ?????????????????????????????????????????????????? | | ?????????????????????????????????????????????????? | | ?????????????????????????????????????????????????? | | ?????????????????????????????????????????????????? | | ?????????????????????????????????????????????????? | | ?????????????????????????????????????????????????? | | ?????????????????????????????????????????????????? | | ?????????????????????????????????????????????????? | | ?????????????????????????????????????????????????? | | ?????????????????????????????????????????????????? | | ?????????????????????????????????????????????????? | | ?????????????????????????????????????????????????? | | ?????????????????????????????????????????????????? | | ?????????????????????????????????????????????????? | | ?????????????????????????????????????????????????? | | ????????????????????????###??????????????????????? | | ???????????????????????? g??????????????????????? | | ????????????????????????# #??????????????????????? | | ????????????????????????# #??????????????????????? | | ????????????????????????#[#??????????????????????? | | ????????????????????????#=#??????????????????????? | | ????????????????????????#%!??????????????????????? | | ?????????????????### ####p#??#???????????????????? | | ?????????? *[@## ##??????????????????? | | ?????????????????## ## #??????????????????? | | ??????????????????????# # ##??????????????????? | | ??????????????????????# |%% #??????????????????? | | ??????????????????????# g# ######## T#????????? | | ??????????????????????###%%= #?????????? | | ??????????????????????? *% #?????????? | | ???????????????????????### !######### #?????????? | | ?????????????????????????# #????????????????????? | | ?????????????????????????# #????????????????????? | | ?????????????????????????# #????????????????????? | | ?????????????????????????# #????????????????????? | | ?????????????????????????# #????????????????????? | | ?????????????????????????# #????????????????????? | | ?????????????????????????# #????????????????????? | | ???????????????????????### #????????????????????? | | ???????????????????????# #????????????????????? | | ???????????????????????# #????????????????????? | | ???????????????????????# #????????????????????? | | ???????????????????????######????????????????????? | | ?????????????????????????????????????????????????? | | ?????????????????????????????????????????????????? | | ?????????????????????????????????????????????????? | | ?????????????????????????????????????????????????? | | ?????????????????????????????????????????????????? | +----------------------------------------------------+ Best States ------------- Heat Dissipation 41 Energy Generation 14 Energy Capacity 280 Matter Stores 300 Matter Capacity 300 Sight Range 16 Terrain Scan Density 10 Evasion (%) 55 Item Schematics ----------------- None Robot Schematics ------------------ None Fabricated ------------ Nothing Repaired ---------- Nothing Alien Tech Used ----------------- None Achievements -------------- None Challenges ------------ None Game ------ Seed LobotomyBlastPod Manual? 0 Play Time 00:16:24 Cumulative 308.7 hours Start 2025.06.28 @ 13:46:32 End 2025.06.28 @ 14:01:43 Sessions 1 Manual Loads 0 Difficulty Rogue Special Mode None Game No. 136 Rogue 122 Adventurer 14 Explorer 0 Win Type - Total 18 Types 15/0/1/1/0/0/0/0/1/0 Lore% 62 Gallery% 72 Achievement% 67 Wizard Run 0 Options --------- Layout 1 ASCII 0 Keyboard 0 Movement Arrows Keybinds 0 Fullscreen 1 Font 32/SmallcapsGlow Map View 50x40 Zoom Use 0% Tactical HUD 1 Map Filters NONE Filters NONE Steam 1 RUN: 882107a8-9012-4545-9cae-c9bf0c13c352